Cogmind - Beta 14 @@@ ROGUE MODE // 2024.09.18 @ 12:16:11 Player: Dull Result: Destroyed by Y-54 Guardian with Gatling Laser Performance ------------- Evolutions (0) 0 Regions Visited (3) 600 Robots Destroyed (44) 220 Value Destroyed (1129) 1129 Prototype IDs (13) 260 Alien Tech Used (0) 0 Bonus (0) 0 TOTAL SCORE: 2209 Bonus ------- None Cogmind --------- Core Integrity 0/250 Matter 275/300 Energy 239/250 System Corruption 0% Temperature Hot (237) Movement Rolling (230) Ox10 Location -7/Recycling Parts ------- > --- POWER (1) -------- Ion Engine > --- PROPULSION (2) --- Light Treads Wheel > --- UTILITY (2) ------ Huge Storage Unit Makeshift Light Armor Plating > --- WEAPON (2) ------- Subdweller Beam Cannon Subdweller Machine Gun > --- INVENTORY (25) --- Ion Engine Myomer Leg Disposable Heat Sink Huge Storage Unit High-capacity Matter Pod (200) Terrain Scanner Armor Integrity Analyzer Makeshift Light Armor Plating Makeshift Kinetic Plating Makeshift Thermal Plating Rainbow Chip Subdweller Beam Cannon Assault Rifle Assault Rifle Battle Cannon Grenade Launcher Grenade Launcher Subdweller Shrapnel Launcher Subdweller Shrapnel Launcher Makeshift Hammer Makeshift Axe Peak State ------------ > --- POWER ------------ Neutrino Core > --- PROPULSION ------- Spiked Treads Spiked Treads > --- UTILITY ---------- Huge Storage Unit ECM Suite > --- WEAPON ----------- Subdweller Beam Cannon Battle Cannon > --- INVENTORY -------- Ion Engine Ion Engine Ion Engine Ion Engine Light Treads Light Treads Light Treads Light Treads Myomer Leg Wheel Disposable Heat Sink Huge Storage Unit High-capacity Matter Pod Terrain Scanner Armor Integrity Analyzer Makeshift Thermal Plating Scrap Shield Small Laser Subdweller Beam Cannon Assault Rifle Assault Rifle Assault Rifle Grenade Launcher Grenade Launcher [Rating: 20] Favorites ----------- Power Ion Engine Engine Ion Engine Power Core Neutrino Core Propulsion Light Treads Treads Light Treads Leg Aluminum Leg Wheel Wheel Utility Huge Storage Unit Device ECM Suite Storage Huge Storage Unit Protection Makeshift Light Armor Plating Weapon Assault Rifle Energy Gun Subdweller Laser Energy Cannon Subdweller Beam Cannon Ballistic Gun Assault Rifle Ballistic Cannon Battle Cannon Slashing Weapon Makeshift Axe Build | -11 -10 -10 -7 ------- Run | Yrd Mat Sub Rec Slots Evolved . | . . . . Power . | . . . . Propulsion . | . . . . Utility . | . . . . Weapon . | . . . . Parts Attached 48 | 4 13 29 2 Power 8 | . 1 7 . Engine 7 | . 1 6 . Core 1 | . . 1 . Reactor . | . . . . Propulsion 15 | 2 5 6 2 Treads 14 | 2 5 6 1 Leg . | . . . . Wheel 1 | . . . 1 Hover . | . . . . Flight . | . . . . Utility 7 | 1 4 2 . Device 3 | 1 2 . . Storage 2 | . 2 . . Processor . | . . . . Hackware . | . . . . Protection 2 | . . 2 . Artifact . | . . . . Weapon 18 | 1 3 14 . Energy Gun 4 | 1 1 2 . Energy Cannon 3 | . . 3 . Ballistic Gun 8 | . 2 6 . Ballistic Cannon 1 | . . 1 . Launcher . | . . . . Special Weapon . | . . . . Impact Weapon . | . . . . Slashing Weapon 2 | . . 2 . Piercing Weapon . | . . . . Special Melee Weapon . | . . . . Unidentified Prototypes . | . . . . Parts Lost 10 | . 1 7 2 Power 1 | . . 1 . Propulsion 5 | . . 3 2 Utility 2 | . 1 1 . Weapon 2 | . . 2 . Highest Loss Streak 2 | . 1 2 2 To Critical Strikes 1 | . . 1 . Average Slot Usage (%) 99 | . 99 99 100 Engine 9 | . 14 7 14 Core 4 | . . 6 . Treads 27 | . 27 27 26 Device 10 | . 13 9 . Storage 14 | . 14 14 14 Protection 3 | . . 4 14 Energy Gun 7 | . 14 6 . Energy Cannon 6 | . . 7 14 Ballistic Gun 10 | . 13 10 14 Ballistic Cannon 2 | . . 3 . Peak Build Rating 20 | 7 11 20 18 Average Rating 15 | 6 9 16 17 On Entrance 10 | 6 7 9 18 Naked Turns . | . . . . Heaviest Build 107 | 15 91 107 101 Greatest Support 40 | 40 40 40 40 Greatest Overweight (x) 10 | . 2 2 10 Average Overweight (x) 1 | . . 2 2 Largest Inventory Capacity 25 | 8 25 25 25 Average Capacity 23 | 8 19 25 25 Most Carried 25 | 6 22 25 23 Average Carried 22 | 5 15 24 22 Final Capacity 25 | 8 25 25 25 Final Carried 23 | 3 22 23 21 Class Distribution -------------------- 95% | Mutant 4% | Scavenger-Mutant Dominant Class ---------------- Mutant | -10/Materials Mutant | -10/Subcaves Mutant | -7/Recycling Resources | -11 -10 -10 -7 ----------- Run | Yrd Mat Sub Rec Matter Collected 1344 | 256 334 754 . Remotely . | . . . . Salvage Created 1465 | 27 503 877 58 Parts 108 | 4 52 50 2 Haulers Intercepted 2 | . 2 . . Recyclers Shooed . | . . . . Parts Field Recycled . | . . . . Retrieved Matter . | . . . . Parts Self-Destructed 18 | . . 18 . Prevented . | . . . . Kills | -11 -10 -10 -7 ------- Run | Yrd Mat Sub Rec Combat Hostiles Destroyed 35 | . 14 20 1 Guns 27 | . 14 12 1 Cannons 8 | . . 8 . Classes Destroyed 10 | 1 6 3 . Builder 1 | . 1 . . Tunneler 2 | 1 1 . . Hauler 2 | . 2 . . Operator 1 | . 1 . . Turret 2 | . . 2 . Watcher 1 | . 1 . . Swarmer 13 | . 9 4 . Grunt 9 | . 5 4 . Sentry 2 | . . 1 1 Subdweller 11 | . . 11 . Best Kill Streak 7 | 1 7 3 1 Combat Bots Only 6 | . 6 2 1 Max Kills in Single Turn 2 | 1 2 1 1 Gunslinging 1 | . 1 . . Exploded . | . . . . Melee . | . . . . Uniques/NPCs Destroyed . | . . . . Combat | -11 -10 -10 -7 -------- Run | Yrd Mat Sub Rec Hostile Shots Fired 291 | . 70 146 75 Missed 96 | . 21 42 33 Damage Taken 2447 | . 480 1649 318 Core 255 | . 45 140 70 Absorbed by Shields . | . . . . Core Remaining (%) 100 | 100 . . . Volleys Fired 187 | 4 71 107 5 Largest 2 | 2 2 2 2 Hottest 119 | 40 70 119 110 Shots Fired 358 | 8 141 199 10 Gun 281 | 8 141 127 5 Cannon 77 | . . 72 5 Launcher . | . . . . Special . | . . . . Kinetic 181 | 8 71 97 5 Thermal 177 | . 70 102 5 Explosive . | . . . . Electromagnetic . | . . . . Robot Hit Streak 16 | 3 11 16 9 Robot Miss Streak 6 | 1 6 3 1 Penetration Max . | . . . . Secondary Targets 5 | . 3 2 . Max Gunslinging Chain 1 | . 1 1 . Shots Hit Robots 198 | 6 75 108 9 Core Hits 71 | 2 29 38 2 Critical Kills . | . . . . Critical Parts Destroyed 2 | . 1 1 . Critical Strikes 7 | . 4 3 . Burn 3 | . 3 . . Destroy 2 | . 1 1 . Blast 2 | . . 2 . Melee Attacks 7 | . . 7 . Impact . | . . . . Slashing 7 | . . 7 . Piercing . | . . . . Sneak Attacks . | . . . . Combat Hostiles . | . . . . Follow-up Attacks . | . . . . Damage Inflicted 3377 | 59 1028 2087 203 Guns 2157 | 59 1018 981 99 Cannons 1210 | . . 1106 104 Explosions . | . . . . Melee . | . . . . Ramming 10 | . 10 . . Kinetic 1491 | 59 495 838 99 Thermal 1876 | . 523 1249 104 Explosive . | . . . . Electromagnetic . | . . . . Impact . | . . . . Slashing . | . . . . Piercing . | . . . . Highest Corruption . | . . . . Average Corruption . | . . . . Corruption Purged . | . . . . Corruption Blocked . | . . . . Overload Shots . | . . . . Overflow Damage . | . . . . Projectiles . | . . . . Explosions . | . . . . Melee . | . . . . Knockbacks 2 | . . 2 . Impact . | . . . . Kinetic 2 | . . 2 . Secondary . | . . . . Self-Inflicted Damage . | . . . . Shots . | . . . . Rammed 1 | . 1 . . Targets Rammed 1 | . 1 . . Kicked . | . . . . Crushed . | . . . . Highest Temperature 324 | . 126 291 324 Average Temperature 41 | . 30 32 207 Received Heat Transfer 928 | . 114 718 96 Effects 1 | . . 1 . Energy Bleed 1 | . . 1 . Siege Activations . | . . . . Robots Corrupted . | . . . . Combat Hostiles . | . . . . Parts Fried . | . . . . Impact Corruptions . | . . . . Robots Melted . | . . . . Combat Hostiles . | . . . . Parts Melted 5 | . 3 2 . Heat Transferred 3585 | . 1715 1722 148 Parts Sabotaged . | . . . . Parts Stolen . | . . . . Parts Stripped . | . . . . Power Chain Reactions . | . . . . Alert | -11 -10 -10 -7 ------- Run | Yrd Mat Sub Rec Peak Influence 367 | 5 367 . 74 Initial 67 | . 3 . 67 Average 84 | 3 86 . 70 Maximum Alert Level 1 | . 1 . . Low Security (%) 92 | 100 92 . 100 Level 1 7 | . 7 . . Level 2 . | . . . . Level 3 . | . . . . Level 4 . | . . . . Level 5 . | . . . . High Security . | . . . . Max Security . | . . . . Squads Dispatched 2 | . 2 . . Investigation 1 | . 1 . . Extermination . | . . . . Reinforcement 1 | . 1 . . Assault . | . . . . Garrison . | . . . . Intercept . | . . . . Searches Triggered . | . . . . Construction Impeded . | . . . . Haulers Reinforced . | . . . . Active Scanning Responses . | . . . . Cargo Convoy Interrupts . | . . . . Stealth | -11 -10 -10 -7 --------- Run | Yrd Mat Sub Rec Distress Signals 3 | . 3 . . Communications Jammed . | . . . . Distress Signals . | . . . . Times Spotted 63 | . 35 26 2 Peak Tracking Total 4 | . 4 4 2 Tactical Retreats 6 | . 2 4 . Traps | -11 -10 -10 -7 ------- Run | Yrd Mat Sub Rec Traps Triggered 5 | . 3 2 . Indirectly . | . . . . Trap Hack Attempts . | . . . . Triggered . | . . . . Disarmed . | . . . . Reprogrammed . | . . . . Reused . | . . . . Traps Extracted . | . . . . Installed . | . . . . Triggered . | . . . . Machines | -11 -10 -10 -7 ---------- Run | Yrd Mat Sub Rec Machines Disabled 3 | . . 3 . Max in Single Turn 1 | . . 1 . Machines Repaired . | . . . . Machines Dismantled . | . . . . Machines Sabotaged . | . . . . Overloaded Fab Kills . | . . . . Hacking | -11 -10 -10 -7 --------- Run | Yrd Mat Sub Rec Machines Accessed 12 | . 9 2 1 Terminals 7 | . 7 . . Fabricators . | . . . . Repair Stations . | . . . . Recycling Units 3 | . 2 . 1 Scanalyzers . | . . . . Garrison Access . | . . . . Total Hacks 47 | . 36 6 5 Successful 26 | . 17 6 3 Failed 20 | . 18 . 2 Catastrophic . | . . . . Database Lockouts 1 | . 1 . . Manual 31 | . 29 . 2 Terminals 30 | . 30 . . Fabricators . | . . . . Repair Stations . | . . . . Recycling Units 11 | . 6 . 5 Scanalyzers . | . . . . Garrison Access . | . . . . Terminal Hacks 13 | . 7 6 . Record 5 | . . 5 . Robot Analysis 1 | . 1 . . Prototype ID Bank 1 | . 1 . . Terminal Index 1 | . 1 . . Alert Level 1 | . 1 . . Locate Traps 2 | . 2 . . Recall Reinforcements 1 | . 1 . . Derelict Proto ID Bank 1 | . . 1 . Fabricator Hacks . | . . . . Repair Station Hacks . | . . . . Recycling Unit Hacks 1 | . . . 1 Retrieve Components 1 | . . . 1 Scanalyzer . | . . . . Garrison Access Hacks . | . . . . Unauthorized Hacks 12 | . 10 . 2 Terminals 6 | . 6 . . Botnet 6 | . 6 . . Fabricators . | . . . . Repair Stations . | . . . . Recycling Units 6 | . 4 . 2 Monitor 1 | . 1 . . Reject 2 | . 1 . 1 Mask 3 | . 2 . 1 Scanalyzers . | . . . . Garrison Access . | . . . . Data Cores Recovered . | . . . . Used . | . . . . Hacking Detections 8 | . 8 . . Full Trace Events 2 | . 2 . . Feedback Events . | . . . . Feedback Blocked . | . . . . Robot Schematics Acquired . | . . . . Robots Built . | . . . . Authchips . | . . . . Time . | . . . . Total Robot Build Rating . | . . . . Part Schematics Acquired . | . . . . Parts Built . | . . . . Authchips . | . . . . Time . | . . . . Total Part Build Rating . | . . . . Parts Repaired . | . . . . Time . | . . . . Parts Recycled . | . . . . Recycled Matter . | . . . . Retrieved Matter . | . . . . Retrieved Components . | . . . . Parts Scanalyzed . | . . . . Part Schematics Acquired . | . . . . Parts Damaged . | . . . . Bothacking | -11 -10 -10 -7 ------------ Run | Yrd Mat Sub Rec Used RIF Installer . | . . . . Robots Hacked . | . . . . Non-combat . | . . . . Combat . | . . . . Robot Hacks Applied . | . . . . Relay Couplers Released . | . . . . Fabnet Peak Effective % . | . . . . Robots Rewired . | . . . . Allies Hacked . | . . . . Hacks Repelled . | . . . . Allies | -11 -10 -10 -7 -------- Run | Yrd Mat Sub Rec Total Allies . | . . . . Largest Group . | . . . . Highest-Rated Group . | . . . . Highest-Rated Ally . | . . . . Total Orders . | . . . . Ally Attacks . | . . . . Total Damage . | . . . . Kills . | . . . . Allies Corrupted . | . . . . Allies Melted . | . . . . Intel | -11 -10 -10 -7 ------- Run | Yrd Mat Sub Rec Robot Analysis Total 1 | . 1 . . Derelict Logs Recovered 2 | . . 2 . Drone Launches . | . . . . Drone Recoveries . | . . . . Exploration | -11 -10 -10 -7 ------------- Run | Yrd Mat Sub Rec Turns Passed 10465 | 37 2247 8079 102 Spaces Moved 3164 | 15 858 2263 28 Core . | . . . . Treads 3149 | 3 858 2263 25 Legs 12 | 12 . . . Wheels 3 | . . . 3 Hover . | . . . . Flight . | . . . . Fastest Speed 120 | 120 160 320 230 Average Speed 305 | 128 227 335 310 Slowest Speed 360 | 160 320 360 320 Overloaded Moves . | . . . . Propulsion Burnouts . | . . . . Robots Hopped . | . . . . Cave-ins Triggered . | . . . . Exploration Rate (%) 52 | 2 101 95 11 Regions Visited 3 Branch Regions 2 Pre-discovered Areas 1 | . . 1 . Known Exits Taken 1 | . . 1 . Unknown Exits Taken 2 | 1 1 . . Scrap Searched 15 | . . 15 . Spaces Dug 2 | . . 2 . Terrain Destroyed 6 | . . 5 1 Melee . | . . . . Projectile 6 | . . 5 1 AOE . | . . . . Terrain Rammed . | . . . . Walls Destroyed . | . . . . Machines Disabled . | . . . . Actions | -11 -10 -10 -7 --------- Run | Yrd Mat Sub Rec Total 3598 | 25 1006 2532 35 Wait 127 | . 37 90 . Move 3161 | 14 857 2262 28 Hop . | . . . . Pick Up 40 | . 21 19 . Fast Attach 6 | 1 5 . . Attach 15 | . 1 12 2 Detach . | . . . . Swap 27 | 3 7 17 . Drop 27 | 3 6 18 . Fire 187 | 4 71 107 5 Melee 7 | . . 7 . Ram . | . . . . Kick . | . . . . Crush 1 | . 1 . . Escape Stasis . | . . . . Rewire . | . . . . Trap . | . . . . Miscellaneous . | . . . . Route ------- -11/Scrapyard -10/Materials (discovered 6 exits: [*Mat x3] / [*Min x2] / *Sub) -10/Subcaves (discovered 3 exits: [*Mat x2] / *Rec) -7/Recycling History --------- Turn | Location | Event 1 | -11/Scrapyard | Discovered new exit (range 3) 38 | -11/Scrapyard | Entered Materials 287 | -10/Materials | Discovered new exit (range 11) 303 | -10/Materials | Build established: Mutant 602 | -10/Materials | Discovered new exit (range 3) 677 | -10/Materials | Discovered new exit (range 15) 706 | -10/Materials | Central database locked down 1538 | -10/Materials | Discovered new exit (range 16) 1775 | -10/Materials | Discovered new exit (range 4) 2236 | -10/Materials | Discovered new exit (range 14) 2285 | -10/Materials | Entered Subcaves 2541 | -10/Subcaves | Discovered new exit (range 5) 2631 | -10/Subcaves | Visited 4L-MR0's lab 3030 | -10/Subcaves | Visited Clippyterm 3041 | -10/Subcaves | Learned 40 Factory zone layouts 3041 | -10/Subcaves | Learned Factory stockpile data 4785 | -10/Subcaves | Discovered new exit (range 6) 5044 | -10/Subcaves | A swath of the cavern ceiling suddenly collapsed 6014 | -10/Subcaves | Core integrity fell below 50% 7908 | -10/Subcaves | Identified exit to Recycling 7957 | -10/Subcaves | Learned location of Zion (-6) 7957 | -10/Subcaves | Met a Zionite searching for "candidates" 7979 | -10/Subcaves | Learned Materials stockpile data 8143 | -10/Subcaves | Shifting Twisted Machinery released Sub. Monowheel 9890 | -10/Subcaves | Found Rainbow Chip 10364 | -10/Subcaves | Entered Recycling 10451 | -7/Recycling | Core integrity fell below 20% 10466 | -7/Recycling | Destroyed by Y-54 Guardian with Gatling Laser Last Messages --------------- 10328_ Dropped Ion Engine. 10330_ Dropped Sub. Laser. 10332_ Acquired 5 matter. 10338_ Subatomizers dissect the Ion Engine. 10345_ Acquired 24 matter. 10351_ Acquired 1 matter. LOCATION=RECYCLING GOAL=ESCAPE 10380_ Connecting with Recycling Unit... >>Trojan(Mask) Trojan loaded successfully. Testing... Masking routine running. >>Trojan(Reject) Trojan loaded successfully. Testing... Ejection routine running. 10440_ Y-54 Guardian springs to life. 10440_ Lgt. Treads destroyed. 10454_ Y-54 Guardian destroyed. Map ----- +----------------------------------------------------+ | ?????????????????????????????????????????????????? | | ?????????????????????????????????????????????????? | | ?????????????????????????????????????????????????? | | ?????????????????????????????????????????????????? | | ?????????????????????????????????????????????????? | | ?????????????????####################????????????? | | ?????????????????# #????????????? | | ?????????????????# #????????????? | | ????????????????## #????????????? | | ????????????????# #????????????? | | ?????????????????# #????????????? | | ?????????????????# #????????????? | | ?????????????????# #????????????? | | ?????????????????# #???????????? | | ???????????????############+#########????????????? | | ???????????? #????????????? | | ???????????? #????????????? | | ???????????? #????????????? | | ?????????????#######+######### ######????????????? | | ?????????????????? ???????#"" #?????????????????? | | ?????????????????#?????????#"Y #?????????????????? | | ?????????????????#?????????#"" #?????????????????? | | ?????????????????# ???????### #?????????????????? | | ?????????????????# ???????# #?????????????????? | | ?????????????????# ###### #####?????????????? | | ?????????????????# /@ Y! #?????????????? | | ?????????????????+ #####* +????????????? | | ?????????????????# ???????# ##????????????? | | ?????????????????# ?????????# #?????????????? | | ?????????????????#??????????? #????????????? | | ?????????????????????????????# ##????????????? | | ?????????????????????????????# +????????????? | | ?????????????????????????????# #????????????? | | ????????????????????????????? #????????????? | | ????????????????????????????? ????????????? | | ????????????????????????????? ???????????? | | ????????????????????????????? """ ??????????? | | ????????????????????????????? """ ??????????? | | ????????????????????????????? "??????????????? | | ?????????????????????????????# ??????????????? | | ?????????????????????????????? ????????????????? | | ?????????????????????????????????????????????????? | | ?????????????????????????????????????????????????? | | ?????????????????????????????????????????????????? | | ?????????????????????????????????????????????????? | | ?????????????????????????????????????????????????? | | ?????????????????????????????????????????????????? | | ?????????????????????????????????????????????????? | | ?????????????????????????????????????????????????? | | ?????????????????????????????????????????????????? | +----------------------------------------------------+ Best States ------------- Heat Dissipation 25 Energy Generation 19 Energy Capacity 315 Matter Stores 300 Matter Capacity 300 Sight Range 16 Terrain Scan Range 16 Terrain Scan Density 10 ECM Strength 1 Armor Coverage 100 Resistance: KI 10 Evasion (%) 55 Recoil Reduction 2 Item Schematics ----------------- None Robot Schematics ------------------ None Fabricated ------------ Nothing Alien Tech Used ----------------- None Achievements -------------- None Challenges ------------ None Game ------ Seed VariableBackupTrident Manual? 0 Play Time 00:32:47 Cumulative 106.5 hours Start 2024.09.18 @ 11:43:41 End 2024.09.18 @ 12:16:11 Sessions 1 Manual Loads 0 Difficulty Rogue Special Mode None Game No. 143 Rogue 143 Adventurer 0 Explorer 0 Win Type - Total 1 Types 1/0/0/0/0/0/0/0/0 Lore% 22 Gallery% 56 Achievement% 44 Wizard Run 0 Options --------- Layout 0 ASCII 0 Keyboard 0 Movement Mouse Keybinds 1 Fullscreen 1 Font 18/TerminusBold Map View 76x50 Zoom Use 0% Tactical HUD 1 Map Filters NONE Filters NONE Steam 1 RUN: 4dfa2c01-05d4-4eaa-9852-47becb887d55